Cogmind - Beta 14 @@@ ROGUE MODE // 2024.12.31 @ 14:06:29 Player: jumpy Result: Self-destructed Performance ------------- Evolutions (2) 1000 Regions Visited (4) 800 Robots Destroyed (24) 120 Value Destroyed (531) 531 Prototype IDs (1) 20 Alien Tech Used (0) 0 Bonus (0) 0 TOTAL SCORE: 2471 Bonus ------- None Cogmind --------- Core Integrity 422/550 Matter 300/300 Energy 100/100 System Corruption 0% Temperature Cool (0) Movement Walking (190) Ox1 Location -8/Materials Parts ------- > --- POWER (1) -------- (None) > --- PROPULSION (4) --- Carbon-fiber Leg > --- UTILITY (4) ------ Medium Storage Unit Terrain Scan Processor Field Recycling Unit > --- WEAPON (2) ------- (None) > --- INVENTORY (10) --- Wheel Improved Utility Shielding Peak State ------------ > --- POWER ------------ (None) > --- PROPULSION ------- Carbon-fiber Leg Titanium Leg > --- UTILITY ---------- Medium Storage Unit Machine Analyzer Terrain Scan Processor Field Recycling Unit > --- WEAPON ----------- Beam Rifle Light Assault Rifle > --- INVENTORY -------- Wheel [Rating: 17] Favorites ----------- Power Ion Engine Engine Ion Engine Propulsion Aluminum Leg Leg Aluminum Leg Wheel Wheel Utility Medium Storage Unit Device Shield Generator Storage Medium Storage Unit Processor Machine Analyzer Weapon Light Assault Rifle Energy Gun Small Laser Ballistic Gun Light Assault Rifle Launcher Grenade Launcher Build | -11 -10 -9 -9 -8 ------- Run | Yrd Mat Mat Min Mat Slots Evolved 4 | . . 2 . 2 Power . | . . . . . Propulsion 2 | . . 2 . . Utility 2 | . . . . 2 Weapon . | . . . . . Parts Attached 26 | 6 1 12 3 4 Power 2 | 1 . 1 . . Engine 2 | 1 . 1 . . Core . | . . . . . Reactor . | . . . . . Propulsion 8 | 2 . 3 1 2 Treads . | . . . . . Leg 7 | 2 . 3 . 2 Wheel 1 | . . . 1 . Hover . | . . . . . Flight . | . . . . . Utility 6 | 1 . 3 . 2 Device 2 | . . 1 . 1 Storage 2 | 1 . 1 . . Processor 2 | . . 1 . 1 Hackware . | . . . . . Protection . | . . . . . Artifact . | . . . . . Weapon 10 | 2 1 5 2 . Energy Gun 4 | 2 . 1 1 . Energy Cannon . | . . . . . Ballistic Gun 4 | . . 3 1 . Ballistic Cannon . | . . . . . Launcher 2 | . 1 1 . . Special Weapon . | . . . . . Impact Weapon . | . . . . . Slashing Weapon . | . . . . . Piercing Weapon . | . . . . . Special Melee Weapon . | . . . . . Unidentified Prototypes 1 | . . 1 . . Parts Lost 17 | . 2 8 3 4 Power 2 | . . 1 1 . Propulsion 6 | . 1 4 . 1 Utility 2 | . . 1 . 1 Weapon 7 | . 1 2 2 2 Highest Loss Streak 4 | . 2 4 3 4 To Critical Strikes . | . . . . . Average Slot Usage (%) 69 | . 84 68 46 69 Engine 7 | . 14 9 5 . Leg 17 | . 28 17 . 15 Device 5 | . . 7 . 8 Storage 11 | . 14 11 11 9 Processor 6 | . . 1 11 17 Energy Gun 9 | . 14 8 2 8 Ballistic Gun 7 | . . 7 15 9 Launcher 4 | . 12 4 . . Peak Build Rating 17 | 6 6 11 11 17 Average Rating 9 | 4 5 8 8 16 On Entrance 5 | . 6 4 11 8 Naked Turns . | . . . . . Heaviest Build 23 | 13 14 23 19 22 Greatest Support 40 | 20 20 40 10 32 Greatest Overweight (x) 7 | . 1 7 6 1 Average Overweight (x) . | . . 1 2 . Largest Inventory Capacity 10 | 8 8 10 10 10 Average Capacity 9 | 7 8 9 10 10 Most Carried 7 | 4 6 7 3 2 Average Carried 2 | 1 3 3 1 1 Final Capacity 10 | 8 8 10 10 10 Final Carried 6 | 2 6 2 1 2 Class Distribution -------------------- 100% | Mutant Dominant Class ---------------- Mutant | -10/Materials Mutant | -9/Materials Mutant | -9/Mines Mutant | -8/Materials Resources | -11 -10 -9 -9 -8 ----------- Run | Yrd Mat Mat Min Mat Matter Collected 620 | 232 60 115 172 41 Remotely . | . . . . . Salvage Created 516 | . 96 329 41 50 Parts 35 | . 8 21 1 5 Haulers Intercepted . | . . . . . Recyclers Shooed 1 | . 1 . . . Parts Field Recycled . | . . . . . Retrieved Matter . | . . . . . Parts Self-Destructed . | . . . . . Prevented . | . . . . . Kills | -11 -10 -9 -9 -8 ------- Run | Yrd Mat Mat Min Mat Combat Hostiles Destroyed 22 | . 3 17 1 1 Guns 13 | . 1 10 1 1 AOE 9 | . 2 7 . . Classes Destroyed 5 | . 1 4 . . Worker 1 | . . 1 . . Builder 1 | . . 1 . . Swarmer 12 | . . 12 . . Grunt 8 | . 3 4 1 . Sentry 2 | . . 1 . 1 Best Kill Streak 5 | . 2 5 1 1 Combat Bots Only 4 | . 2 4 1 1 Max Kills in Single Turn 4 | . 1 4 1 1 Gunslinging 1 | . . 1 . . Exploded 3 | . 1 3 . . Melee . | . . . . . Uniques/NPCs Destroyed . | . . . . . Combat | -11 -10 -9 -9 -8 -------- Run | Yrd Mat Mat Min Mat Hostile Shots Fired 227 | . 36 133 21 37 Missed 60 | . 10 32 5 13 Damage Taken 1981 | . 354 876 253 498 Core 478 | . 64 207 79 128 Absorbed by Shields 200 | . . 200 . . Core Remaining (%) 67 | 100 74 . 28 . Volleys Fired 55 | . 7 32 13 3 Largest 2 | . 2 2 2 2 Hottest 83 | . 70 83 46 76 Shots Fired 96 | . 10 64 17 5 Gun 85 | . 7 56 17 5 Cannon . | . . . . . Launcher 11 | . 3 8 . . Special . | . . . . . Kinetic 55 | . . 35 17 3 Thermal 30 | . 7 21 . 2 Explosive 11 | . 3 8 . . Electromagnetic . | . . . . . Robot Hit Streak 18 | . 3 18 7 3 Robot Miss Streak 3 | . 1 3 2 1 Penetration Max . | . . . . . Secondary Targets 2 | . . 2 . . Max Gunslinging Chain 1 | . . 1 . . Shots Hit Robots 65 | . 7 42 13 3 Core Hits 38 | . 5 27 4 2 Critical Kills . | . . . . . Critical Parts Destroyed . | . . . . . Critical Strikes 1 | . . 1 . . Burn 1 | . . 1 . . Melee Attacks . | . . . . . Impact . | . . . . . Slashing . | . . . . . Piercing . | . . . . . Sneak Attacks . | . . . . . Combat Hostiles . | . . . . . Follow-up Attacks . | . . . . . Damage Inflicted 1557 | . 291 1067 170 29 Guns 708 | . 64 445 170 29 Cannons . | . . . . . Explosions 838 | . 227 611 . . Melee . | . . . . . Ramming 11 | . . 11 . . Kinetic 468 | . . 283 170 15 Thermal 240 | . 64 162 . 14 Explosive 838 | . 227 611 . . Electromagnetic . | . . . . . Impact . | . . . . . Slashing . | . . . . . Piercing . | . . . . . Highest Corruption . | . . . . . Average Corruption . | . . . . . Corruption Purged . | . . . . . Corruption Blocked . | . . . . . Overload Shots . | . . . . . Overflow Damage 6 | . . 6 . . Projectiles . | . . . . . Explosions 6 | . . 6 . . Melee . | . . . . . Knockbacks . | . . . . . Impact . | . . . . . Kinetic . | . . . . . Secondary . | . . . . . Self-Inflicted Damage 171 | . 31 140 . . Shots 5 | . 2 3 . . Rammed 4 | . . 4 . . Targets Rammed 8 | . . 8 . . Kicked 4 | . . 4 . . Crushed . | . . . . . Highest Temperature 90 | . 84 90 6 14 Average Temperature 30 | . 26 36 2 10 Received Heat Transfer 459 | . 201 105 144 9 Siege Activations . | . . . . . Robots Corrupted . | . . . . . Combat Hostiles . | . . . . . Parts Fried . | . . . . . Impact Corruptions . | . . . . . Robots Melted . | . . . . . Combat Hostiles . | . . . . . Parts Melted 3 | . . 3 . . Heat Transferred 742 | . 150 555 . 37 Parts Sabotaged . | . . . . . Parts Stolen . | . . . . . Parts Stripped . | . . . . . Power Chain Reactions . | . . . . . Alert | -11 -10 -9 -9 -8 ------- Run | Yrd Mat Mat Min Mat Peak Influence 330 | . 55 330 161 79 Initial 101 | . . 14 101 62 Average 77 | . 21 116 117 55 Maximum Alert Level 1 | . . 1 . . Low Security (%) 88 | 100 100 72 100 100 Level 1 11 | . . 27 . . Level 2 . | . . . . . Level 3 . | . . . . . Level 4 . | . . . . . Level 5 . | . . . . . High Security . | . . . . . Max Security . | . . . . . Squads Dispatched 5 | . 2 2 . 1 Investigation 1 | . 1 . . . Extermination . | . . . . . Reinforcement 4 | . 1 2 . 1 Assault . | . . . . . Garrison . | . . . . . Intercept . | . . . . . Searches Triggered . | . . . . . Construction Impeded 1 | . . 1 . . Haulers Reinforced . | . . . . . Active Scanning Responses . | . . . . . Cargo Convoy Interrupts . | . . . . . Stealth | -11 -10 -9 -9 -8 --------- Run | Yrd Mat Mat Min Mat Distress Signals 5 | . 1 3 . 1 Communications Jammed . | . . . . . Distress Signals . | . . . . . Times Spotted 44 | . 9 25 5 5 Peak Tracking Total 6 | . 6 5 2 3 Tactical Retreats 6 | . . 1 3 2 Traps | -11 -10 -9 -9 -8 ------- Run | Yrd Mat Mat Min Mat Traps Triggered 1 | . 1 . . . Indirectly . | . . . . . Trap Hack Attempts . | . . . . . Triggered . | . . . . . Disarmed . | . . . . . Reprogrammed . | . . . . . Reused . | . . . . . Traps Extracted . | . . . . . Installed . | . . . . . Triggered . | . . . . . Machines | -11 -10 -9 -9 -8 ---------- Run | Yrd Mat Mat Min Mat Machines Disabled 3 | . . 3 . . Max in Single Turn 1 | . . 1 . . Machines Repaired . | . . . . . Machines Dismantled . | . . . . . Machines Sabotaged . | . . . . . Overloaded Fab Kills . | . . . . . Hacking | -11 -10 -9 -9 -8 --------- Run | Yrd Mat Mat Min Mat Machines Accessed 2 | . . . . 2 Terminals 1 | . . . . 1 Fabricators . | . . . . . Repair Stations . | . . . . . Recycling Units . | . . . . . Scanalyzers 1 | . . . . 1 Garrison Access . | . . . . . Total Hacks 4 | . . . . 4 Successful 4 | . . . . 4 Failed . | . . . . . Catastrophic . | . . . . . Database Lockouts . | . . . . . Manual . | . . . . . Terminals 2 | . . . . 2 Fabricators . | . . . . . Repair Stations . | . . . . . Recycling Units . | . . . . . Scanalyzers 2 | . . . . 2 Garrison Access . | . . . . . Terminal Hacks 2 | . . . . 2 Alert Level 1 | . . . . 1 Dispatch Records 1 | . . . . 1 Fabricator Hacks . | . . . . . Repair Station Hacks . | . . . . . Recycling Unit Hacks . | . . . . . Scanalyzer 2 | . . . . 2 Insert Component 1 | . . . . 1 Analyze 1 | . . . . 1 Garrison Access Hacks . | . . . . . Unauthorized Hacks . | . . . . . Terminals . | . . . . . Fabricators . | . . . . . Repair Stations . | . . . . . Recycling Units . | . . . . . Scanalyzers . | . . . . . Garrison Access . | . . . . . Data Cores Recovered . | . . . . . Used . | . . . . . Hacking Detections . | . . . . . Full Trace Events . | . . . . . Feedback Events . | . . . . . Feedback Blocked . | . . . . . Robot Schematics Acquired . | . . . . . Robots Built . | . . . . . Authchips . | . . . . . Time . | . . . . . Total Robot Build Rating . | . . . . . Part Schematics Acquired 1 | . . . . 1 Parts Built . | . . . . . Authchips . | . . . . . Time . | . . . . . Total Part Build Rating . | . . . . . Parts Repaired . | . . . . . Time . | . . . . . Parts Recycled . | . . . . . Recycled Matter . | . . . . . Retrieved Matter . | . . . . . Retrieved Components . | . . . . . Parts Scanalyzed 1 | . . . . 1 Part Schematics Acquired 1 | . . . . 1 Parts Damaged . | . . . . . Bothacking | -11 -10 -9 -9 -8 ------------ Run | Yrd Mat Mat Min Mat Used RIF Installer . | . . . . . Robots Hacked . | . . . . . Non-combat . | . . . . . Combat . | . . . . . Robot Hacks Applied . | . . . . . Relay Couplers Released . | . . . . . Fabnet Peak Effective % . | . . . . . Robots Rewired . | . . . . . Allies Hacked . | . . . . . Hacks Repelled . | . . . . . Allies | -11 -10 -9 -9 -8 -------- Run | Yrd Mat Mat Min Mat Total Allies . | . . . . . Largest Group . | . . . . . Highest-Rated Group . | . . . . . Highest-Rated Ally . | . . . . . Total Orders . | . . . . . Ally Attacks . | . . . . . Total Damage . | . . . . . Kills . | . . . . . Allies Corrupted . | . . . . . Allies Melted . | . . . . . Intel | -11 -10 -9 -9 -8 ------- Run | Yrd Mat Mat Min Mat Robot Analysis Total . | . . . . . Derelict Logs Recovered . | . . . . . Drone Launches . | . . . . . Drone Recoveries . | . . . . . Exploration | -11 -10 -9 -9 -8 ------------- Run | Yrd Mat Mat Min Mat Turns Passed 2177 | 99 442 871 245 520 Spaces Moved 1023 | 78 199 376 116 254 Core 160 | 13 . 85 62 . Treads . | . . . . . Legs 777 | 65 199 291 . 222 Wheels 86 | . . . 54 32 Hover . | . . . . . Flight . | . . . . . Fastest Speed 50 | 50 120 120 95 95 Average Speed 153 | 108 120 189 182 128 Slowest Speed 400 | 120 190 400 350 190 Overloaded Moves . | . . . . . Propulsion Burnouts . | . . . . . Robots Hopped . | . . . . . Cave-ins Triggered . | . . . . . Exploration Rate (%) 19 | 5 28 30 22 13 Regions Visited 4 Branch Regions 1 Pre-discovered Areas . | . . . . . Known Exits Taken . | . . . . . Unknown Exits Taken 4 | 1 1 1 1 . Scrap Searched 1 | . . . 1 . Spaces Dug . | . . . . . Terrain Destroyed 79 | . 14 65 . . Melee . | . . . . . Projectile . | . . . . . AOE 79 | . 14 65 . . Terrain Rammed . | . . . . . Walls Destroyed . | . . . . . Machines Disabled . | . . . . . Actions | -11 -10 -9 -9 -8 --------- Run | Yrd Mat Mat Min Mat Total 1523 | 91 391 466 133 442 Wait 387 | 2 181 28 . 176 Move 1019 | 77 198 375 115 254 Hop . | . . . . . Pick Up 24 | 6 4 8 2 4 Fast Attach 2 | 2 . . . . Attach 20 | 4 . 9 3 4 Detach 1 | . . . . 1 Swap 4 | . 1 3 . . Drop 3 | . . 3 . . Fire 55 | . 7 32 13 3 Melee . | . . . . . Ram 4 | . . 4 . . Kick 4 | . . 4 . . Crush . | . . . . . Escape Stasis . | . . . . . Rewire . | . . . . . Trap . | . . . . . Miscellaneous . | . . . . . Route ------- -11/Scrapyard -10/Materials -9/Materials -9/Mines (discovered 2 exits: *Mat x2) -8/Materials (discovered 1 exit: [*Sto]) History --------- Turn | Location | Event 2 | -11/Scrapyard | Discovered new exit (range 16) 100 | -11/Scrapyard | Entered Materials 308 | -10/Materials | Build established: Mutant 500 | -10/Materials | Discovered new exit (range 16) 542 | -10/Materials | Entered another Materials area 542 | -9/Materials | Evolved 2 slots: Propulsion x2 1231 | -9/Materials | Discovered new exit (range 14) 1249 | -9/Materials | Lost 4 parts (1p1u2w) 1351 | -9/Materials | Core integrity fell below 50% 1413 | -9/Materials | Entered Mines 1469 | -9/Mines | Discovered new exit (range 9) 1545 | -9/Mines | Discovered new exit (range 5) 1553 | -9/Mines | Lost 3 parts (1p2w) 1658 | -9/Mines | Entered Materials 1658 | -8/Materials | Evolved 2 slots: Utility x2 2132 | -8/Materials | Discovered new exit (range 12) 2178 | -8/Materials | Self-destructed Last Messages --------------- 5x Patrol 6x Transport 01853_ K-01 Serf collects debris. 01868_ W-25 Informer sends out distress signal. 01986_ K-01 Serf collects debris. 02132_ EXIT=FOUND 02151_ Acquired 40 matter. 02154_ ALERT: Suspicious intruders detected, dispatching Specialist reinforcements to area. 02163_ Y-45 Defender destroyed. 02165_ Beam Rifle destroyed. 02165_ Knocked back. 02171_ Acquired 1 matter. 02171_ Penetrated by Slug. 02171_ Knocked back. 02174_ Lgt. Assault Rifle destroyed. 02174_ Machine Analyzer destroyed. 02174_ Knocked back. 02176_ Titanium Leg destroyed. 02176_ Knocked back. Map ----- +----------------------------------------------------+ | ????# ## """ #????????# #??? | | ????# ## """ ########## #??? | | ????# ## # # #??? | | ????# ##+######## + #??? | | #####+## #??????# # #??? | | # # #??????# # #??? | | # """ # #??????########## ##?? | | # "Y" # ################ #?? | | # + #?? | | # ! # T #?? | | # =# #?? | | ########+####+#####+##### #?? | | ??????# #?? ??#######?? | | ??????# """ #?? #?????????? | | ??????# """ #?? #?????????? | | ??????# """ #?? #?????????? | | ??????# #? #?????????? | | ??????# """ !#? #?????????? | | ??????# """ #?######???""""""" | | ??????# """ #??????????""""""" | | ??????# #??????????""""""" | | ??????#####/######## #?""""""" | | ?????????# H x #?""""""" | | ??#######; < #???????? | | ??# %% [; ######### #???????? | | ??# %]%@#!#????????????????????? | | ??#] ][ =x%#????????????????????? | | ??# ][ [#!#????????????????????? | | ??# # #????????????????????? | | ??# = # #????????????????????? | | ??########+#????????????????????? | | ????????????????????????????????? | | ????????"""?????????????????????? | | ????????"""?????????????????????? | | ????????"""?????????????????????? | | ????????????????????????????????? | | ?????????""?????????????????????? | | ????????S""?????????????????????? | | ????????""??????????????????????? | | ????????????????????????????????? | | ????????????????????????????????? | | ????????????????????????????????? | | ????????????????????????????????? | | ????????????????????????????????? | | | | | | | | | | | | | +----------------------------------------------------+ Best States ------------- Heat Dissipation 31 Energy Generation 10 Energy Capacity 250 Matter Stores 300 Matter Capacity 300 Sight Range 16 Terrain Scan Density 85 Evasion (%) 55 Item Schematics ----------------- Wheel | -8/Materials | Scanalyzed Robot Schematics ------------------ None Fabricated ------------ Nothing Alien Tech Used ----------------- None Achievements -------------- None Challenges ------------ None Game ------ Seed BattleIonicCannon Manual? 0 Play Time 00:16:45 Cumulative 3.2 hours Start 2024.12.31 @ 13:52:45 End 2024.12.31 @ 14:06:29 Sessions 1 Manual Loads 0 Difficulty Rogue Special Mode None Game No. 10 Rogue 10 Adventurer 0 Explorer 0 Win Type - Total 0 Types 0/0/0/0/0/0/0/0/0 Lore% 2 Gallery% 8 Achievement% 10 Wizard Run 0 Options --------- Layout 0 ASCII 0 Keyboard 0 Movement Numpad Keybinds 0 Fullscreen 2 Font 18/SmallcapsGlow Map View 76x50 Zoom Use 0% Tactical HUD 1 Map Filters NONE Filters NONE Steam 1 RUN: 82cc3e5d-692e-4ab2-972b-09fb7152fe8b